Workbook

Sheet Cable Tray vs. Supports
D3: Eaton's B-Line Series Cable Ladder to Support Cost Ratio Calculator
D4: Leveraging Longer Spans, Fitting Solutions, Vertical Transitions, and Heavy Duty Expansion Splices
D5: The purpose of this calculator is to help demonstrate the potential cost savings when utilizing Eaton's B-Line series cable ladder and applying our support recommendations.
H7: Instructions: | L7: Make changes in yellow shaded areas for specified project.
L8: Select choice from blue drop down menus.
B10: Units of Measurement (PLEASE SELECT) | H10: Imperial | J10: Support Install Time (minutes)** | L10: Splice Install Time (minutes) | N10: #1 Individual Support Cost ** | P10: #2 Individual Support Cost ** | R10: #3 Individual Support Cost ** | T10: #4 Individual Support Cost **
B11: ="Labor Rate "&IF(H10='Reference Data'!B2, "($/hr)","($/hr)") -> Labor Rate ($/hr) | H11: 150
B12: ="Cable Ladder Straight Run Length "&IF(H10='Reference Data'!B1,"(ft)","(m)") -> Cable Ladder Straight Run Length (ft) | H12: 15000
B13: ="Individual Support Structure Weight "&IF(H10='Reference Data'!B1,"(lbs)", "(kg)") -> Individual Support Structure Weight (lbs) | H13: 250 | J13: 360 | L13: 15 | N13: 3000 | P13: 1000 | R13: 1000 | T13: 3000
B14: Cable Tray Material | H14: Aluminum
B15: ="Temperature Differential "&IF(H10='Reference Data'!B1,"(⁰F)", "(⁰C)") -> Temperature Differential (⁰F) | H15: 100
B16: ="Maximum Expansion Splice Interval Spacing "&IF(H10='Reference Data'!B1,"(ft)","(m)") -> Maximum Expansion Splice Interval Spacing (ft) | H16: =IF(H10='Reference Data'!B1,(INDEX('Reference Data'!B10:E16,MATCH('Cable Tray vs. Supports'!H15,'Reference Data'!A10:A16,0),MATCH('Cable Tray vs. Supports'!H14,'Reference Data'!B9:E9,0))),IF(H10='Reference Data'!B2,(INDEX('Reference Data'!H10:K16,MATCH('Cable Tray vs. Supports'!H15,'Reference Data'!G10:G16,0),MATCH('Cable Tray vs. Supports'!H14,'Reference Data'!H9:K9,0))))) -> 65
B17: #1 Longer Span Savings | F17: ="Ladder Price per "&IF(H10='Reference Data'!B1,"Foot","Meter")&"*" -> Ladder Price per Foot* | H17: ="Support Span "&IF(H10='Reference Data'!B1,"(ft) -Series Dependent-","(m) -Series Dependent-") -> Support Span (ft) -Series Dependent- | J17: Individual Support Cost ** | L17: Number of Supports Required | N17: Labor Per Support Location | P17: Labor Per Splice Location | R17: Cable Ladder Material Cost | T17: Cable Ladder Support Cost | V17: Cable Ladder Material & Support Costs | X17: Cable Ladder Support Savings
B18: EXCLUDING SUPPORTS REQUIRED FOR EXPANSION JOINTS
D19: Option A (Short Span) | F19: 10 | H19: 20 | J19: =N13 -> 3000 | L19: =(H12/H19) -> 750 | N19: =H11*J13/60 -> 900 | P19: =H11*L13/60 -> 37.5 | Q19: = | R19: =F19*H12 -> 150000 | T19: =L19*(J19+N19+P19) -> 2953125 | V19: =(H12*F19)+(L19*(J19+N19+P19)) -> 3103125 | X19: =ROUNDUP((V19-V21),0) -> 954375 | Z19: =(L19*(J19+N19+P19)) -> 2953125
D21: Option B (Long Span) | F21: 12 | H21: 30 | J21: =N13 -> 3000 | L21: =(H12/H21) -> 500 | N21: =H11*J13/60 -> 900 | P21: =H11*L13/60 -> 37.5 | Q21: = | R21: =F21*H12 -> 180000 | T21: =(L21*(J21+N21+P21)) -> 1968750 | V21: =(H12*F21)+(L21*(J21+N21+P21)) -> 2148750 | Z21: =(L21*(J21+N21+P21)) -> 1968750
B23: #2 Fitting Support Savings | F23: Fitting Type | H23: Quantity | J23: Individual Support Cost ** | L23: Supports Required (NEMA) | N23: Unsupported Fitting (B-Line series) "Floating Fitting" | P23: Supported Fitting (B-Line series) "1/2 Span / Dual" | R23: Nema Fitting Support Cost | T23: B-Line series "Floating Fitting" Support Cost | V23: B-Line series "1/2 Span / Dual" Support Cost | X23: Fitting Support Savings
B25: EXCLUDING SUPPORTS REQUIRED FOR EXPANSION JOINTS | F25: Horizontal Bends | H25: 45 | J25: =P13 -> 1000 | L25: =H25*'Fittings Support'!C3 -> 135 | N25: =H25*'Fittings Support'!D3 -> 90 | P25: =H25*'Fittings Support'!E3 -> 45 | Q25: = | R25: ='Fittings Support'!C11 -> 1084924 | T25: ='Fittings Support'!D11 -> 655524 | V25: ='Fittings Support'!E11 -> 319212 | X25: Minimum Savings
F26: Horizontal Tees | H26: 28 | L26: =H26*'Fittings Support'!C4 -> 168 | N26: =H26*'Fittings Support'!D4 -> 84 | P26: =H26*'Fittings Support'!E4 -> 56 | Q26: = | X26: =R25-T25 -> 429400
F27: Horizontal Crosses | H27: 15 | L27: =H27*'Fittings Support'!C5 -> 120 | N27: =H27*'Fittings Support'!D5 -> 60 | P27: =H27*'Fittings Support'!E5 -> 30 | Q27: =
F28: Reducers | H28: 12 | L28: =H28*'Fittings Support'!C7 -> 24 | N28: =H28*'Fittings Support'!D7 -> 24 | P28: =H28*'Fittings Support'!E7 -> 12 | X28: Maximum Savings
F29: Vertical Bends | H29: 37 | L29: =H29*'Fittings Support'!C6 -> 148 | N29: =H29*'Fittings Support'!D6 -> 111 | P29: =H29*'Fittings Support'!E6 -> 37 | Q29: = | X29: =R25-V25 -> 765712
B31: #3 Vertical Adjustable Support Savings | F31: Material Type | H31: Tray Series | J31: Elevation Transitions *** | L31: Individual Support Cost ** | N31: ="Max Transition Span without Supports "&IF(H10='Reference Data'!B1,"(ft)","(m)") -> Max Transition Span without Supports (ft) | P31: Number of Supports Required | R31: Labor Per Support Location | T31: Labor Per Splice Location | V31: Support Costs | X31: Vertical Transition Support Savings
B32: EXCLUDING SUPPORTS REQUIRED FOR EXPANSION JOINTS
D33: NEMA | F33: Aluminum | H33: Series_2_4 | J33: 22 | L33: =R13 -> 1000 | N33: =IF(H33="Series_S8A", 20, IF(H33="Series_57A",15,IF(H33="Series_2_4",10,IF(H33="Series_2_5", 10,IF(H33="HDL",3,IF(H33="SDL",3,IF(H33="Metric_Series_2_4",3,IF(H33="Metric_Series_5",4.5,0)))))))) -> 10 | P33: =IF(J33=0,0,'Fittings Support'!J15) -> 88 | R33: =J13*H11/60 -> 900 | T33: =H11*L13/60 -> 37.5 | U33: = | V33: =2*(J33*T33)+(L33*P33)+(P33*R33) -> 168850 | X33: =V33-V35 -> 83600
D35: B-Line series | L35: =R13 -> 1000 | P35: =IF(J33=0,0,'Fittings Support'!M15) -> 44 | R35: =J13*H11/60 -> 900 | T35: =H11*L13/60 -> 37.5 | U35: = | V35: =2*(J33*T35)+(L35*P35)+(P35*R35) -> 85250
B37: #4 Expansion Splice Locations | F37: Expansion Splice Price | H37: ="Support Span "&IF(H10='Reference Data'!B1,"(ft)","(m)") -> Support Span (ft) | J37: Cost of each Support ** | L37: Number of Expansion Supports Required | N37: Labor Per Support Location | P37: Labor Per Splice Location | T37: Expansion Splice and & Additional Support Costs | X37: HD Expansion Splice Support Savings
B38: EXCLUDING SUPPORTS REQUIRED FOR TYPICAL RUN
D39: Standard* | F39: 25 | H39: 20 | J39: =T13 -> 3000 | L39: =((H12/(FLOOR(H16,H39))))-1 -> 249 | N39: =J13*H11/60 -> 900 | P39: =H11*L13/60 -> 37.5 | R39: = | T39: =IF(F39=0,0,(L39*(J39+N39+P39))+(F39*(H12/(MROUND(H16,H21))))) -> 986687.5 | X39: =T39-T41 -> 974187.5
D41: Heavy Duty | F41: 50 | J41: =T13 -> 3000 | L41: =IF(H10='Reference Data'!B1,(IF(H39<=40,0,"N/A")),(IF(H39<=12,0,"N/A"))) -> 0 | N41: =H11*J13/60 -> 900 | P41: =H11*(L13*1.5)/60 -> 56.25 | R41: = | T41: =IF(F41=0,0,(L41*(J41+N41+P41))+(F41*(H12/(MROUND(H16,H21))))) -> 12500
C44: Select only one Fitting Option | F44: Total Support Savings Selection | M44: =D49+H49+L49+R49+X49 -> 0 | S44: **
L47: 765600
B49: =ROUNDUP(D49,0) -> 0 | D49: 0 | E49: =IF(X19=0,"û","ü") -> ü | H49: 0 | I49: =IF(X26=0,"û","ü") -> ü | J49: =IF(H49=X26,H49,L49) -> 0 | K49: =IF(X29=0,"û","ü") -> ü | L49: 0 | M49: =IF(H49=X26,"Floating Fitting","1/2 Span / Dual Support") -> 1/2 Span / Dual Support | N49: =H49+L49 -> 0 | P49: =D49+H49+L49+R49+X49 -> 0 | Q49: =IF(X33=0,"û","ü") -> ü | R49: 0 | W49: =IF(X39=0,"û","ü") -> ü | X49: 0
B50: Notes: | C50: * | D50: Compare straight run price only, since Eaton's Bline series fittings will require the same supports regardless of tray type.
C51: ** | D51: Outdoor supports include structural steel support columns and trapeze assemblies. Be sure to add support labor cost to material cost of each support (See support and Splice Install Time input cells). This will make a dramatic difference to the total.
C52: *** | D52: Elevation transistions consist of 2 pairs of vertical adjustable splice plates.
B53: * | D53: Standard expansion splice plates require a support within two feet on each side of the expansion splice plate location per NEMA VE-2 installation guide. Eaton's B-Line series Heavy Duty Expansion splice plate does not require any additional supports around expansion locations. Support span derived from "Longer Span Savings" longest span selected.
B54: ** | D54: Select desired structural steel solutions and ensure only one Fitting Detial is slected. The amount listed here is an etimation based upon user input data; this is not a guarantee of actual savings.
D55: FOR MORE INFORMATION AND DETAILS PLEASE REFERENCE: Engineers guide to structural steel savings with B-Line series cable ladder system (SSS-17)
L56: Publication No. CA302004EN

Sheet Results
B2: Results Overview
B4: Structural Steel Savings Solutions
B5: =IFERROR("Based on the variables you selected, choosing an Eaton B-Line series cable ladder system for your project can yield an approximate total savings of $"&TEXT('Cable Tray vs. Supports'!P49,"#,### ")&". Below you can see how the 4 key project design considerations break out to provide the lowest total installed cost in the cable ladder industry.","Please enter values for all of the inputs to view the completed analysis.") -> Based on the variables you selected, choosing an Eaton B-Line series cable ladder system for your project can yield an approximate total savings of $ . Below you can see how the 4 key project design considerations break out to provide the lowest total installed cost in the cable ladder industry.
B11: Results Details
B13: #1 Longer Straight Section Spans | J13: =IF('Cable Tray vs. Supports'!D49=0,"û",'Cable Tray vs. Supports'!E49) -> û
B14: =IF('Cable Tray vs. Supports'!D49=0, "NA","Based on the variables you selected, the total expected savings that can be achieved by utilizing Eaton's B-Line series longer support span solutions equates to $"&TEXT('Cable Tray vs. Supports'!X19,"#,###")&". The savings listed was achieved with only a $"&TEXT('Cable Tray vs. Supports'!F21-'Cable Tray vs. Supports'!F19,"#,### ")&"per " &IF('Cable Tray vs. Supports'!H10='Reference Data'!B1,"foot","meter") &" increase in cable ladder material price.") -> NA
B19: #2 Fitting Support Savings | J19: =IF('Cable Tray vs. Supports'!N49=0,"û",'Cable Tray vs. Supports'!I49) -> û
B20: =IF('Cable Tray vs. Supports'!N49= 0,"NA","By supporting the fittings per the Eaton's B-Line series recommendations (See SSS-17 Engineers Guide to Structural Steel Savings for more information) and moving the cable ladder supports to best fit the application, you can save up to $"&TEXT('Cable Tray vs. Supports'!J49,"#,### ")&"utilizing Eaton's *" & 'Cable Tray vs. Supports'!M49 &"* recommendations for this project.") -> NA
B25: #3 Vertical Adjustable Support Savings | J25: =IF('Cable Tray vs. Supports'!R49=0,"û",'Cable Tray vs. Supports'!Q49) -> û
B26: =IF('Cable Tray vs. Supports'!R49=0, "NA","Based on the variables selected, the total expected savings that can be achieved by utilizing Eaton's B-Line series vertical adjustable splice plate support recommendations is $"&TEXT('Cable Tray vs. Supports'!X33,"#,###.")) -> NA
B31: #4 Thermal Expansion Support Savings | J31: =IF('Cable Tray vs. Supports'!X49=0,"û",'Cable Tray vs. Supports'!W49) -> û
B32: =IF('Cable Tray vs. Supports'!X49=0,"NA","Based on the variables selected, the total expected savings that can be achieved by utilizing Eaton's B-Line series Heavy Duty Expansion Splice support recommendation is $"&TEXT('Cable Tray vs. Supports'!X39,"#,###.")) -> NA
B37: Steel Weight Summary | J37: =IF('Reference Data'!B84=0,"û","ü") -> û
B38: =IF('Reference Data'!B84=0,"NA","Based on user inputs and selected variables, approximately "&TEXT('Reference Data'!B83,"#,### ")&"structural steel supports could be eliminated on this project example by utilizing Eaton's B-Line series cable ladder solutions. This would equate to approximately "&IF('Cable Tray vs. Supports'!H10='Reference Data'!B1,'Reference Data'!C84,'Reference Data'!C85)&"of total weight saved. ") -> NA
B43: Publication No. CA302004EN

Sheet Fittings Support (hidden)
C1: Required Supports | G1: Vertical Adjustable Splice Plate
B2: Quantity | C2: NEMA | D2: B-Line #1 (2 feet) | E2: B-Line #2 (half span) | G2: Quantity | H2: Series | I2: Transition Span | J2: NEMA Supports | K2: total | L2: Bline Supports | M2: total
A3: Horizontal Bends | B3: ='Cable Tray vs. Supports'!H25*1 -> 45 | C3: 3 | D3: 2 | E3: 1 | G3: ='Cable Tray vs. Supports'!J33 -> 22 | H3: (2-4) | I3: 5 | J3: 4 | K3: =J3*G3 -> 88 | L3: 2 | M3: =L3*G3 -> 44
A4: Horizontal Tees | B4: ='Cable Tray vs. Supports'!H26*1 -> 28 | C4: 6 | D4: 3 | E4: 2 | G4: =G3 -> 22 | H4: (2-4) | I4: 10 | J4: 4 | K4: =J4*G4 -> 88 | L4: 2 | M4: =L4*G4 -> 44
A5: Horizontal Crosses | B5: ='Cable Tray vs. Supports'!H27*1 -> 15 | C5: 8 | D5: 4 | E5: 2 | G5: ='Cable Tray vs. Supports'!J33 -> 22 | H5: 57A | I5: 5 | J5: 4 | K5: 88 | L5: 2 | M5: 44
A6: Vertical Bends | B6: ='Cable Tray vs. Supports'!H29*1 -> 37 | C6: 4 | D6: 3 | E6: 1 | G6: =G5 -> 22 | H6: 57A | I6: 10 | J6: 4 | K6: 88 | L6: 2 | M6: 44
A7: Reducers | B7: ='Cable Tray vs. Supports'!H28 -> 12 | C7: 2 | D7: 2 | E7: 1 | G7: =G5 -> 22 | H7: 57A | I7: 15 | J7: 4 | K7: 88 | L7: 2 | M7: 44
G8: ='Cable Tray vs. Supports'!J33 -> 22 | H8: S8A | I8: 5 | J8: 4 | K8: 88 | L8: 2 | M8: 44
A9: Support Material Cost Each | B9: ='Cable Tray vs. Supports'!J25 -> 1000 | G9: =G8 -> 22 | H9: S8A | I9: 10 | J9: 4 | K9: 88 | L9: 2 | M9: 44
A10: Support Install Labor Cost Each | B10: ='Cable Tray vs. Supports'!H11*'Cable Tray vs. Supports'!J13/60 -> 900 | G10: =G9 -> 22 | H10: S8A | I10: 15 | J10: 4 | K10: 88 | L10: 2 | M10: 44
A11: Total Cost | C11: =(($B$3*C3)+($B$4*C4)+($B$5*C5)+($B$6*C6))*($B$9+$B$10)+(B7*C7) -> 1084924 | D11: =(($B$3*D3)+($B$4*D4)+($B$5*D5)+($B$6*D6))*($B$9+$B$10)+(B7*D7) -> 655524 | E11: =(($B$3*E3)+($B$4*E4)+($B$5*E5)+($B$6*E6))*($B$9+$B$10)+(B7*E7) -> 319212 | G11: =G10 -> 22 | H11: S8A | I11: 20 | J11: 4 | K11: 88 | L11: 2 | M11: 44
A12: Savings | D12: =(C11-D11) -> 429400 | E12: =(C11-E11) -> 765712 | G12: ='Cable Tray vs. Supports'!J33 -> 22 | H12: (2-5) | I12: 5 | J12: 4 | K12: =J12*G12 -> 88 | L12: 2 | M12: =L12*G12 -> 44
G13: =G12 -> 22 | H13: (2-5) | I13: 10 | J13: 4 | K13: =J13*G13 -> 88 | L13: 2 | M13: =L13*G13 -> 44
A14: Minimum Savings | D14: =MIN(D12:E12) -> 429400
A15: Maximum Savings | D15: =MAX(D12:E12) -> 765712 | G15: Totals | J15: =J3*G3 -> 88 | M15: =L3*G3 -> 44
A18: AL | B18: Series_2_4
B19: _57A
B20: _S8A
A21: Steel | B21: Series_2_5
A22: 304
A23: 316

Sheet Reference Data (hidden)
A1: Aluminum | B1: Imperial
A2: Steel | B2: Metric
A3: SS 304
A4: SS 316
A6: Standard
A7: Heavy Duty
A9: Temp Differential | B9: Steel | C9: Aluminum | D9: SS4 | E9: SS6 | G9: Temp Differential (metric) | H9: Metric_Steel | I9: Metric_Aluminum | J9: Metric_SS4 | K9: Metric_SS6 | M9: Units | N9: Material | O9: AL List | P9: Steel List | Q9: SS 304 List | R9: SS 316 List | S9: MCL List | T9: Metric AL List | V9: Series_2-4 | W9: Series_2-5 | X9: 57A | Y9: S8A | Z9: HDL_List | AA9: SDL_List | AB9: Series_2_4_Metric | AC9: Series_5_Metric
A10: 25 | B10: 512 | C10: 260 | D10: 347 | E10: 379 | G10: 13.9 | H10: 156 | I10: 79.2 | J10: 105.7 | K10: \ | M10: Metric | N10: Aluminum | O10: Series_2_4 | P10: Series_2_5 | Q10: Series_2_5 | R10: Series_2_5 | S10: HDL | T10: Metric_Series_2_4 | V10: 10 | W10: 10 | X10: 15 | Y10: 20 | Z10: 3 | AA10: 3 | AB10: 3 | AC10: 4.5
A11: 50 | B11: 256 | C11: 130 | D11: 174 | E11: 189 | G11: 27.8 | H11: 78 | I11: 39.6 | J11: 53 | K11: 57.6 | M11: Imperial | N11: Steel | O11: Series_57A | S11: SDL | T11: Metric_Series_5
A12: 75 | B12: 171 | C12: 87 | D12: 116 | E12: 126 | G12: 41.7 | H12: 52.1 | I12: 26.5 | J12: 35.4 | K12: 38.4 | N12: SS_304 | O12: Series_S8A
A13: 100 | B13: 128 | C13: 65 | D13: 87 | E13: 95 | G13: 55.6 | H13: 39 | I13: 19.8 | J13: 26.5 | K13: 29 | N13: SS_316
A14: 125 | B14: 102 | C14: 52 | D14: 69 | E14: 76 | G14: 69.4 | H14: 31.1 | I14: 15.8 | J14: 21 | K14: 23.2 | N14: MCL_Series
A15: 150 | B15: 85 | C15: 43 | D15: 58 | E15: 63 | G15: 83.3 | H15: 25.9 | I15: 13.1 | J15: 17.7 | K15: 19.2 | N15: Metric_AL
A16: 175 | B16: 73 | C16: 37 | D16: 50 | E16: 54 | G16: 97.2 | H16: 22.2 | I16: 11.3 | J16: 15.2 | K16: 16.4
A19: Imperial AL
A20: A | B20: B | C20: CC | D20: D | E20: E | F20: F | G20: P
A21: 10 | B21: 12 | C21: 16 | D21: 20 | E21: 24 | F21: 30 | G21: 40
A22: 12 | B22: 16 | C22: 20 | D22: 24 | E22: 25 | F22: 40
A23: 16 | B23: 20 | C23: 24 | D23: 25 | E23: 30
A24: 20 | B24: 24 | C24: 25 | D24: 30 | E24: 40
A25: 24 | B25: 25 | C25: 30 | D25: 40
A26: 25 | B26: 30 | C26: 40
A27: 30 | B27: 40
A28: 40
A30: Imperial Steel/Stainless
A31: AA | B31: BB | C31: CCC | D31: DD | E31: EE
A32: 10 | B32: 12 | C32: 16 | D32: 20 | E32: 24
A33: 12 | B33: 16 | C33: 20 | D33: 24
A34: 16 | B34: 20 | C34: 24
A35: 20 | B35: 24
A36: 24
A42: Metric AL
A43: N | B43: O | C43: G | D43: H | E43: I | F43: J | G43: K | H43: L | I43: M | J43: Q
A44: 1.5 | B44: 2 | C44: 3 | D44: 4 | E44: 5 | F44: 6 | G44: 7 | H44: 8 | I44: 9 | J44: 12
A45: 2 | B45: 3 | C45: 4 | D45: 5 | E45: 6 | F45: 7 | G45: 8 | H45: 9 | I45: 12
A46: 3 | B46: 4 | C46: 5 | D46: 6 | E46: 7 | F46: 8 | G46: 9 | H46: 12
A47: 4 | B47: 5 | C47: 6 | D47: 7 | E47: 8 | F47: 9 | G47: 12
A48: 5 | B48: 6 | C48: 7 | D48: 8 | E48: 9 | F48: 12
A49: 6 | B49: 7 | C49: 8 | D49: 9 | E49: 12
A50: 7 | B50: 8 | C50: 9 | D50: 12
A51: 8 | B51: 9 | C51: 12
A52: 9 | B52: 12
A53: 12
A56: Metric Steel/Stainless
A57: NN | B57: OO | C57: GG | D57: HH | E57: II | F57: JJ | G57: KK
A58: 1.5 | B58: 2 | C58: 3 | D58: 4 | E58: 5 | F58: 6 | G58: 7
A59: 2 | B59: 3 | C59: 4 | D59: 5 | E59: 6 | F59: 7
A60: 3 | B60: 4 | C60: 5 | D60: 6 | E60: 7
A61: 4 | B61: 5 | C61: 6 | D61: 7
A62: 5 | B62: 6 | C62: 7
A63: 6 | B63: 7
A64: 7
A69: Total Savings | B69: =('Fittings Support'!D15)+'Cable Tray vs. Supports'!X19+'Cable Tray vs. Supports'!X39 -> 2694274.5
B71: lbs | C71: kgs
A72: Steel Weight Eliminated | B72: =ROUNDUP(('Cable Tray vs. Supports'!H13*(('Cable Tray vs. Supports'!L19-'Cable Tray vs. Supports'!L21)+(SUM('Cable Tray vs. Supports'!L25:L29)-SUM('Cable Tray vs. Supports'!N25:N29))+('Cable Tray vs. Supports'!P33-'Cable Tray vs. Supports'!P35)+('Cable Tray vs. Supports'!L39-'Cable Tray vs. Supports'!L41))),0) -> 192250 | C72: =B72*0.453592 -> 87203.062
A73: Steel Weight Eliminated | B73: =ROUNDUP(('Cable Tray vs. Supports'!H13*(('Cable Tray vs. Supports'!L19-'Cable Tray vs. Supports'!L21)+(SUM('Cable Tray vs. Supports'!L25:L29)-SUM('Cable Tray vs. Supports'!P25:P29))+('Cable Tray vs. Supports'!P33-'Cable Tray vs. Supports'!P35)+('Cable Tray vs. Supports'!L39-'Cable Tray vs. Supports'!L41))),0) -> 239500 | C73: =B73*0.453592 -> 108635.284
A75: Formatting | B75: =TEXT(B72,"#,###")&" lbs. or "&TEXT(B73,"#,###")&" lbs." -> 192,250 lbs. or 239,500 lbs. | C75: =TEXT(C72,"#,###")&" kgs. or "&TEXT(C73,"#,###")&" kgs." -> 87,203 kgs. or 108,635 kgs.
A78: Long Spans | B78: =IF('Cable Tray vs. Supports'!B49='Cable Tray vs. Supports'!X19,'Cable Tray vs. Supports'!L19-'Cable Tray vs. Supports'!L21,0) -> 0 | C78: ='Cable Tray vs. Supports'!X19 -> 954375 | D78: 19 | E78: =IF(C78=C79,"yes","no") -> no
A79: Fittings Floating | B79: =IF('Cable Tray vs. Supports'!H49='Cable Tray vs. Supports'!X26,SUM('Cable Tray vs. Supports'!L25:L29)-SUM('Cable Tray vs. Supports'!N25:N29),0) -> 0 | C79: ='Cable Tray vs. Supports'!B49 -> 0 | D79: 20
A80: Fittings 1/2 Span | B80: =IF('Cable Tray vs. Supports'!J49='Cable Tray vs. Supports'!X29,SUM('Cable Tray vs. Supports'!L25:L29)-SUM('Cable Tray vs. Supports'!P25:P29),0) -> 0 | D80: 21
A81: Vertical ADJ | B81: =IF('Cable Tray vs. Supports'!R49='Cable Tray vs. Supports'!X33,'Cable Tray vs. Supports'!P33-'Cable Tray vs. Supports'!P35,0) -> 0
A82: HD EXP | B82: =IF('Cable Tray vs. Supports'!X49='Cable Tray vs. Supports'!X39,'Cable Tray vs. Supports'!L39-'Cable Tray vs. Supports'!L41,0) -> 0
A83: Total Support Reduction | B83: =SUM(B78:B82) -> 0 | C83: =IF(B83=0,"û","ü") -> û
A84: Support Reduction (SI) | B84: =SUM(B78:B82)*'Cable Tray vs. Supports'!H13 -> 0 | C84: =TEXT(B84,"#,###")&" lbs. " -> lbs.
A85: Support Reduction (Metric) | B85: =B84*0.453592 -> 0 | C85: =TEXT(B85,"#,###")&" kgs. " -> kgs.

Sheet Trouble Shooting
E3: #N/A Issues
E32: Not Calculating Correctly
E56: Support & Labor Costs Drive Savings Numbers - Fill in All 4 Design Criteria for Maximum Savings
E76: Select Boxes to Generate Desired Savings - Only Select 1 Fitting Type
E96: Changes to Design Consideration Calculations After Selections are Checked
D136: For more assistance please contact Eaton's Bline business at 618-654-2184
